{"text_format":"3","workbook":"xlsx","n_sheets":2,"sheets":["Lista do Professor"," Dados da Lista"],"not_rendered":{"defined_names":6},"read":"whole","date_system":"1900"}

{"sheet":"Lista do Professor","index":0,"n_rows":10,"n_cols":10,"rows_kept":10,"merged":[[0,1,0,2],[0,4,0,8],[2,9,6,9]]}
[null,"Lista do Professor",null,"Dados da Lista","A Legenda por Cores do Estado está nesta célula: Não Iniciado tem o estilo Normal, Em Curso tem R=91 G=133 B=49, Para Hoje tem R=118 G=88 B=0, Pendente tem R=109 G=66 B=111, Concluído está rasurado, Cancelado tem R=191 G=191 B=191 e Atrasado tem R=191 G=33 B=28."]
[null,"ITEM","CATEGORIA","DATA DE INÍCIO","DATA PARA CONCLUSÃO","DIAS RESTANTES","ESTADO","NOTAS"]
[null,"Limpar gavetas","Escritório",{"$f":"DATE(YEAR(TODAY()),MONTH(TODAY())-1,6)","v":"2018-04-06"},{"$f":"DATE(YEAR(TODAY()),MONTH(TODAY())-1,16)","v":"2018-04-16"},{"$f":"IFERROR(IF(COUNT(Lista[[#This Row],[DATA DE INÍCIO]]:Lista[[#This Row],[DATA PARA CONCLUSÃO]])<>2,\"\",IF(OR(Lista[[#This Row],[ESTADO]]=\"Concluído\",Lista[[#This Row],[ESTADO]]=\"Cancelado\",Lista[[#This Row],[ESTADO]]=\"Pendente\"),\"\",Lista[[#This Row],[DATA PARA CONCLUSÃO]]-TODAY())),\"\")","v":""},"Concluído",null,null,"A segmentação de dados do Estado está nesta célula. Para filtrar a lista por Estado, selecione um estado da segmentação de dados. Mantenha a tecla Ctrl premida para selecionar múltiplas opções."]
[null,"Encomendar autocolantes","Materiais",{"$f":"DATE(YEAR(TODAY()),MONTH(TODAY())-1,11)","v":"2018-04-11"},{"$f":"DATE(YEAR(TODAY()),MONTH(TODAY())-1,21)","v":"2018-04-21"},{"$f":"IFERROR(IF(COUNT(Lista[[#This Row],[DATA DE INÍCIO]]:Lista[[#This Row],[DATA PARA CONCLUSÃO]])<>2,\"\",IF(OR(Lista[[#This Row],[ESTADO]]=\"Concluído\",Lista[[#This Row],[ESTADO]]=\"Cancelado\",Lista[[#This Row],[ESTADO]]=\"Pendente\"),\"\",Lista[[#This Row],[DATA PARA CONCLUSÃO]]-TODAY())),\"\")","v":""},"Concluído"]
[null,"Lavar e encerar o chão","Outro",{"$f":"DATE(YEAR(TODAY()),MONTH(TODAY()-1),DAY(TODAY())-25)","v":"2018-04-15"},{"$f":"DATE(YEAR(TODAY()),MONTH(TODAY())-1,26)","v":"2018-04-26"},{"$f":"IFERROR(IF(COUNT(Lista[[#This Row],[DATA DE INÍCIO]]:Lista[[#This Row],[DATA PARA CONCLUSÃO]])<>2,\"\",IF(OR(Lista[[#This Row],[ESTADO]]=\"Concluído\",Lista[[#This Row],[ESTADO]]=\"Cancelado\",Lista[[#This Row],[ESTADO]]=\"Pendente\"),\"\",Lista[[#This Row],[DATA PARA CONCLUSÃO]]-TODAY())),\"\")","v":""},"Concluído"]
[null,"Dar um nome às etiquetas criadas","Materiais",{"$f":"DATE(YEAR(TODAY()),MONTH(TODAY())-1,21)","v":"2018-04-21"},{"$f":"DATE(YEAR(TODAY()),MONTH(TODAY())-1,1)","v":"2018-04-01"},{"$f":"IFERROR(IF(COUNT(Lista[[#This Row],[DATA DE INÍCIO]]:Lista[[#This Row],[DATA PARA CONCLUSÃO]])<>2,\"\",IF(OR(Lista[[#This Row],[ESTADO]]=\"Concluído\",Lista[[#This Row],[ESTADO]]=\"Cancelado\",Lista[[#This Row],[ESTADO]]=\"Pendente\"),\"\",Lista[[#This Row],[DATA PARA CONCLUSÃO]]-TODAY())),\"\")","v":""},"Pendente"]
[null,"Classificar os relatórios escritos do semestre","Avaliações",{"$f":"DATE(YEAR(TODAY()),MONTH(TODAY())-1,26)","v":"2018-04-26"},{"$f":"TODAY()-5","v":"2018-05-05"},{"$f":"IFERROR(IF(COUNT(Lista[[#This Row],[DATA DE INÍCIO]]:Lista[[#This Row],[DATA PARA CONCLUSÃO]])<>2,\"\",IF(OR(Lista[[#This Row],[ESTADO]]=\"Concluído\",Lista[[#This Row],[ESTADO]]=\"Cancelado\",Lista[[#This Row],[ESTADO]]=\"Pendente\"),\"\",Lista[[#This Row],[DATA PARA CONCLUSÃO]]-TODAY())),\"\")","v":-5},"Atrasado"]
[null,"Lembrete por E-mail das Autorizações","Chamadas telefónicas",{"$f":"DATE(YEAR(TODAY()),MONTH(TODAY()),1)","v":"2018-05-01"},{"$f":"TODAY()","v":"2018-05-10"},{"$f":"IFERROR(IF(COUNT(Lista[[#This Row],[DATA DE INÍCIO]]:Lista[[#This Row],[DATA PARA CONCLUSÃO]])<>2,\"\",IF(OR(Lista[[#This Row],[ESTADO]]=\"Concluído\",Lista[[#This Row],[ESTADO]]=\"Cancelado\",Lista[[#This Row],[ESTADO]]=\"Pendente\"),\"\",Lista[[#This Row],[DATA PARA CONCLUSÃO]]-TODAY())),\"\")","v":""},"Cancelado"]
[null,"Classificar os relatórios orais","Escritório",{"$f":"DATE(YEAR(TODAY()),MONTH(TODAY()),7)","v":"2018-05-07"},{"$f":"DATE(YEAR(TODAY()),MONTH(TODAY()),17)","v":"2018-05-17"},{"$f":"IFERROR(IF(COUNT(Lista[[#This Row],[DATA DE INÍCIO]]:Lista[[#This Row],[DATA PARA CONCLUSÃO]])<>2,\"\",IF(OR(Lista[[#This Row],[ESTADO]]=\"Concluído\",Lista[[#This Row],[ESTADO]]=\"Cancelado\",Lista[[#This Row],[ESTADO]]=\"Pendente\"),\"\",Lista[[#This Row],[DATA PARA CONCLUSÃO]]-TODAY())),\"\")","v":7},"Em Curso"]
[null,"Afiar lápis","Materiais",{"$f":"DATE(YEAR(TODAY()),MONTH(TODAY()),11)","v":"2018-05-11"},{"$f":"DATE(YEAR(TODAY()),MONTH(TODAY()),10)","v":"2018-05-10"},{"$f":"IFERROR(IF(COUNT(Lista[[#This Row],[DATA DE INÍCIO]]:Lista[[#This Row],[DATA PARA CONCLUSÃO]])<>2,\"\",IF(OR(Lista[[#This Row],[ESTADO]]=\"Concluído\",Lista[[#This Row],[ESTADO]]=\"Cancelado\",Lista[[#This Row],[ESTADO]]=\"Pendente\"),\"\",Lista[[#This Row],[DATA PARA CONCLUSÃO]]-TODAY())),\"\")","v":0},"Em Curso"]

{"sheet":" Dados da Lista","index":1,"n_rows":13,"n_cols":3,"rows_kept":13}
[null,"Dados da Lista","Lista do Professor"]
[null,"Categoria"]
[null,"Escritório"]
[null,"Materiais"]
[null,"Compras"]
[null,"Chamadas telefónicas"]
[null,"Novas ideias"]
[null,"Avaliações"]
[null,"Equipa"]
[null,"Intervenções"]
[null,"Computador"]
[null,"Pessoal"]
[null,"Outro"]